fUST/lending_fUST_20250210
["ID","MTS","AMOUNT","RATE_DAILY","PERIOD"]
[352543724,1739159451868,-500.0,0.00011643,2]
[352543725,1739159451878,-500.0,0.00011643,2]
[352543726,1739159451888,-653.91,0.00011643,2]
[352543727,1739159451898,-500.0,0.00011643,2]
[352543728,1739159451907,-501.46,0.00011643,2]
[352543729,1739159451916,-500.0,0.00011643,2]
[352543730,1739159451927,-500.0,0.00011643,2]
[352543731,1739159451937,-644.45954468,0.00011643,2]
[352543732,1739159451946,-500.0,0.00011643,2]
[352543733,1739159451956,-3903.0,0.00011643,2]
[352543734,1739159451965,-344.80364924,0.00011643,2]
[352543735,1739159451974,-3709.32,0.00011643,2]
[352543736,1739159451984,-500.0,0.00011643,2]
[352543737,1739159451994,-3719.6,0.00011643,2]
[352543738,1739159452003,-871.83,0.00011643,2]
[352543739,1739159452013,-2055.74,0.00011643,2]
[352543740,1739159452023,-500.0,0.00011643,2]
[352543741,1739159452032,-524.88407616,0.00011643,2]
[352543742,1739159452041,-1325.55,0.00011643,2]
[352543743,1739159452051,-500.0,0.00011643,2]
[352543744,1739159452061,-760.18,0.00011643,2]
[352543745,1739159452071,-500.0,0.00011643,2]
[352543746,1739159452081,-650.97,0.00011643,2]
[352543747,1739159452091,-14163.79,0.00011643,2]
[352543748,1739159452100,-518.98,0.00011643,2]
[352543749,1739159452110,-26907.86,0.00011643,2]
[352543750,1739159452120,-2005.94,0.00011643,2]
[352543751,1739159452129,-1618.92,0.00011643,2]
[352543752,1739159452138,-500.0,0.00011643,2]
[352543753,1739159452148,-704.77,0.00011643,2]
[352543754,1739159452157,-586.18908628,0.00011643,2]
[352543755,1739159452168,-1456.37,0.00011643,2]
[352543756,1739159452178,-779.8,0.00011643,2]
[352543757,1739159452188,-500.0,0.00011643,2]
[352543758,1739159452198,-500.0,0.00011643,2]
[352543759,1739159452208,-500.0,0.00011643,2]
[352543760,1739159452217,-500.0,0.00011643,2]
[352543761,1739159452226,-1919.7,0.00011643,2]
[352543762,1739159452236,-500.0,0.00011643,2]
[352543763,1739159452245,-824.44,0.00011643,2]
[352543764,1739159452255,-245.26451731,0.00011643,2]
[352543765,1739159452265,-500.0,0.00011643,2]
[352543766,1739159452275,-500.0,0.00011643,2]
[352543767,1739159452284,-1614.34,0.00011643,2]
[352543768,1739159452294,-500.0,0.00011643,2]
[352543769,1739159452303,-500.0,0.00011643,2]
[352543770,1739159452314,-500.0,0.00011643,2]
[352543771,1739159452323,-500.0,0.00011643,2]
[352543772,1739159452334,-500.0,0.00011643,2]
[352543773,1739159452344,-500.0,0.00011643,2]
[352543774,1739159452355,-500.0,0.00011643,2]
[352543775,1739159452364,-500.0,0.00011643,2]
[352543776,1739159452374,-500.0,0.00011643,2]
[352543777,1739159452384,-589.21,0.00011643,2]
[352543778,1739159452394,-1026.49,0.00011643,2]
[352543779,1739159452403,-500.0,0.00011643,2]
[352543780,1739159452413,-746.76,0.00011643,2]
[352543781,1739159452422,-655.27,0.00011643,2]
[352543782,1739159452432,-2053.08,0.00011643,2]
[352543783,1739159452441,-2692.2,0.00011643,2]
[352543784,1739159452451,-500.0,0.00011643,2]
[352543785,1739159452461,-502.50105116,0.00011643,2]
[352543786,1739159452471,-1287.78,0.00011643,2]
[352543787,1739159452481,-1187.79,0.00011643,2]
[352543788,1739159452491,-500.0,0.00011643,2]
[352543789,1739159452501,-578.04927352,0.00011643,2]
[352543790,1739159452511,-732.99,0.00011643,2]
[352543791,1739159452520,-1000.7,0.00011643,2]
[352543792,1739159452530,-1242.99,0.00011643,2]
[352543793,1739159452540,-500.0,0.00011643,2]
[352543794,1739159452551,-500.0,0.00011643,2]
[352543795,1739159452560,-501.94132729,0.00011643,2]
[352543796,1739159452570,-367.47427531,0.00011643,2]
[352543797,1739159452580,-500.0,0.00011643,2]
[352543798,1739159452590,-500.0,0.00011643,2]
[352543799,1739159452606,-500.0,0.00011643,2]
[352543800,1739159452617,-500.65609954,0.00011643,2]
[352543801,1739159452632,-500.0,0.00011643,2]
[352543802,1739159452643,-521.05,0.00011643,2]
[352543803,1739159452654,-500.0,0.00011643,2]
[352543804,1739159452665,-500.0,0.00011643,2]
[352543805,1739159452676,-790.31,0.00011643,2]
[352543806,1739159452686,-500.0,0.00011643,2]
[352543807,1739159452697,-510.08,0.00011643,2]
[352543808,1739159452708,-1045.63,0.00011643,2]
[352543809,1739159452785,-500.0,0.00011643,2]
[352543810,1739159452795,-500.0,0.00011643,2]
[352543811,1739159452806,-937.96,0.00011643,2]
[352543812,1739159452816,-501.74156417,0.00011643,2]
[352543813,1739159452825,-601.45271623,0.00011643,2]
[352543814,1739159452835,-3052.88,0.00011643,2]
[352543815,1739159452849,-679.89,0.00011643,2]
[352543816,1739159452859,-500.0,0.00011643,2]
[352543817,1739159452869,-500.0,0.00011643,2]
[352543818,1739159452879,-500.0,0.00011643,2]
[352543819,1739159452888,-6790.26,0.00011643,2]
[352543820,1739159452898,-1017.48,0.00011643,2]
[352543821,1739159452907,-500.0,0.00011643,2]
[352543822,1739159452917,-500.0,0.00011643,2]
[352543823,1739159452927,-706.11,0.00011643,2]
[352543824,1739159452937,-3458.8,0.00011643,2]
[352543825,1739159452946,-500.0,0.00011643,2]
[352543826,1739159452955,-500.0,0.00011643,2]
[352543827,1739159452965,-500.0,0.00011643,2]
[352543828,1739159452974,-10188.75,0.00011643,2]
[352543829,1739159452983,-151.0,0.000117,2]
[352543830,1739159452992,-151.0,0.000117,2]
[352543831,1739159453001,-500.0,0.0001178,2]
[352543832,1739159453011,-631.93764054,0.0001178,2]
[352543833,1739159453020,-500.0,0.0001178,2]
[352543834,1739159453029,-500.0,0.0001178,2]
[352543835,1739159453039,-299.9963864,0.0001178,2]
[352543836,1739159453048,-719.3,0.0001178,2]
[352543837,1739159453057,-1019.54,0.0001178,2]
[352543838,1739159453067,-732.17,0.0001178,2]
[352543839,1739159453076,-500.0,0.0001178,2]
[352543840,1739159453086,-500.0,0.0001178,2]
[352543841,1739159453098,-500.0,0.0001178,2]
[352543842,1739159453108,-733.41,0.0001178,2]
[352543843,1739159453117,-742.49,0.0001178,2]
[352543844,1739159453127,-500.0,0.0001178,2]
[352543845,1739159453137,-500.0,0.0001178,2]
[352543846,1739159453147,-340.17337902,0.0001178,2]
[352543847,1739159453156,-500.0,0.0001178,2]
[352543848,1739159453167,-500.0,0.0001178,2]
[352543849,1739159453177,-500.0,0.0001178,2]
[352543850,1739159453187,-1187.85,0.0001178,2]
[352543851,1739159453197,-500.0,0.0001178,2]
[352543852,1739159453207,-500.0,0.0001178,2]
[352543853,1739159453216,-500.0,0.0001178,2]
[352543854,1739159453226,-500.0,0.0001178,2]
[352543855,1739159453236,-694.28,0.0001178,2]
[352543856,1739159453245,-500.0,0.0001178,2]
[352543857,1739159453254,-500.0,0.0001178,2]
[352543858,1739159453264,-500.0,0.0001178,2]
[352543859,1739159453274,-705.99,0.0001178,2]
[352543860,1739159453283,-500.0,0.0001178,2]
[352543861,1739159453294,-500.0,0.0001178,2]
[352543862,1739159453304,-580.12,0.0001178,2]
[352543863,1739159453313,-500.0,0.0001178,2]
[352543864,1739159453323,-1920.71,0.0001178,2]
[352543865,1739159453332,-268.24746965,0.0001178,2]
[352543866,1739159453342,-500.0,0.0001178,2]
[352543867,1739159453351,-500.0,0.0001178,2]
[352543868,1739159453360,-500.0,0.0001178,2]
[352543869,1739159453370,-610.0,0.0001178,2]
[352543870,1739159453379,-523.61398343,0.0001178,2]
[352543871,1739159453389,-500.0,0.0001178,2]
[352543872,1739159453399,-1079.91,0.0001178,2]
[352543873,1739159453408,-500.0,0.0001178,2]
[352543874,1739159453418,-500.0,0.0001178,2]
[352543875,1739159453427,-653.91,0.0001178,2]
[352543876,1739159453436,-500.0,0.0001178,2]
[352543877,1739159453446,-501.46,0.0001178,2]
[352543878,1739159453457,-500.0,0.0001178,2]
[352543879,1739159453467,-500.0,0.0001178,2]
[352543880,1739159453478,-500.0,0.0001178,2]
[352543881,1739159453488,-3903.0,0.0001178,2]
[352543882,1739159453498,-3709.32,0.0001178,2]
[352543883,1739159453507,-500.0,0.0001178,2]
[352543884,1739159453517,-3719.6,0.0001178,2]
[352543885,1739159453526,-871.83,0.0001178,2]
[352543886,1739159453536,-2055.74,0.0001178,2]
[352543887,1739159453546,-500.0,0.0001178,2]
[352543888,1739159453556,-1325.55,0.0001178,2]
[352543889,1739159453567,-486.88781909,0.0001178,2]
[352543890,1739159453578,-760.18,0.0001178,2]
[352543891,1739159453588,-500.0,0.0001178,2]
[352543892,1739159453605,-650.97,0.0001178,2]
[352543893,1739159453616,-14163.79,0.0001178,2]
[352543894,1739159453631,-518.98,0.0001178,2]
[352543895,1739159453643,-26907.86,0.0001178,2]
[352543896,1739159453655,-2005.94,0.0001178,2]
[352543897,1739159453667,-1618.92,0.0001178,2]
[352543898,1739159453679,-500.0,0.0001178,2]
[352543899,1739159453691,-704.77,0.0001178,2]
[352543900,1739159453703,-1456.37,0.0001178,2]
[352543901,1739159453715,-779.8,0.0001178,2]
[352543902,1739159453726,-500.0,0.0001178,2]
[352543903,1739159453738,-507.74716417,0.0001178,2]
[352543904,1739159453749,-500.0,0.0001178,2]
[352543905,1739159453759,-500.0,0.0001178,2]
[352543906,1739159453770,-1919.7,0.0001178,2]
[352543907,1739159453780,-500.0,0.0001178,2]
[352543908,1739159453790,-824.44,0.0001178,2]
[352543909,1739159453801,-500.0,0.0001178,2]
[352543910,1739159453811,-324.75683172,0.0001178,2]
[352543911,1739159453821,-1614.34,0.0001178,2]
[352543912,1739159453831,-262.45389299,0.0001178,2]
[352543913,1739159453843,-500.0,0.0001178,2]
[352543914,1739159453857,-500.0,0.0001178,2]
[352543915,1739159453866,-500.0,0.0001178,2]
[352543916,1739159453876,-500.0,0.0001178,2]
[352543917,1739159453886,-500.0,0.0001178,2]
[352543918,1739159453896,-394.04247695,0.0001178,2]
[352543919,1739159453907,-500.0,0.0001178,2]
[352543920,1739159453916,-500.0,0.0001178,2]
[352543921,1739159453927,-589.21,0.0001178,2]
[352543922,1739159453937,-1026.49,0.0001178,2]
[352543923,1739159453947,-500.0,0.0001178,2]
[352543924,1739159453957,-746.76,0.0001178,2]
[352543925,1739159453967,-655.27,0.0001178,2]
[352543926,1739159453977,-2053.08,0.0001178,2]
[352543927,1739159454063,-2692.2,0.0001178,2]
[352543928,1739159454074,-500.0,0.0001178,2]
[352543929,1739159454084,-1287.78,0.0001178,2]
[352543930,1739159454097,-1187.79,0.0001178,2]
[352543931,1739159454107,-500.0,0.0001178,2]
[352543932,1739159454116,-732.99,0.0001178,2]
[352543933,1739159454126,-1000.7,0.0001178,2]
[352543934,1739159454136,-1242.99,0.0001178,2]
[352543935,1739159454145,-500.0,0.0001178,2]
[352543936,1739159454155,-500.0,0.0001178,2]
[352543937,1739159454165,-500.0,0.0001178,2]
[352543938,1739159454175,-500.0,0.0001178,2]
[352543939,1739159454185,-500.0,0.0001178,2]
[352543940,1739159454195,-500.0,0.0001178,2]
[352543941,1739159454204,-521.05,0.0001178,2]
[352543942,1739159454213,-500.0,0.0001178,2]
[352543943,1739159454222,-500.0,0.0001178,2]
[352543944,1739159454232,-790.31,0.0001178,2]
[352543945,1739159454241,-428.44745266,0.0001178,2]
[352543946,1739159454250,-510.08,0.0001178,2]
[352543947,1739159454260,-1045.63,0.0001178,2]
[352543948,1739159454270,-500.0,0.0001178,2]
[352543949,1739159454279,-500.0,0.0001178,2]
[352543950,1739159454289,-937.96,0.0001178,2]
[352543951,1739159454299,-3052.88,0.0001178,2]
[352543952,1739159454308,-679.89,0.0001178,2]
[352543953,1739159454318,-500.0,0.0001178,2]
[352543954,1739159454327,-500.0,0.0001178,2]
[352543955,1739159454337,-500.0,0.0001178,2]
[352543956,1739159454350,-6790.26,0.0001178,2]
[352543957,1739159454361,-1017.48,0.0001178,2]
[352543958,1739159454371,-506.76682037,0.0001178,2]
[352543959,1739159454380,-500.0,0.0001178,2]
[352543960,1739159454391,-706.11,0.0001178,2]
[352543961,1739159454400,-3458.8,0.0001178,2]
[352543962,1739159454410,-500.0,0.0001178,2]
[352543963,1739159454419,-500.0,0.0001178,2]
[352543964,1739159454429,-500.0,0.0001178,2]
[352543965,1739159454439,-10188.75,0.0001178,2]
[352543966,1739159454448,-151.0,0.000118,2]
[352543967,1739159454457,-332.55886866,0.00011817,2]
[352543968,1739159454467,-151.0,0.000119,2]
[352543969,1739159454476,-329.19073265,0.00011917,2]
[352543970,1739159454486,-499.97634618,0.00011917,2]
[352543971,1739159454495,-500.0,0.00011917,2]
[352543972,1739159454505,-719.3,0.00011917,2]
[352543973,1739159454515,-1019.54,0.00011917,2]
[352543974,1739159454524,-732.17,0.00011917,2]
[352543975,1739159454534,-500.0,0.00011917,2]
[352543976,1739159454543,-500.0,0.00011917,2]
[352543977,1739159454552,-500.0,0.00011917,2]
[352543978,1739159454561,-733.41,0.00011917,2]
[352543979,1739159454571,-742.49,0.00011917,2]
[352543980,1739159454580,-209.05984539,0.00011917,2]
[352543981,1739159454589,-500.0,0.00011917,2]
[352543982,1739159454601,-500.0,0.00011917,2]
[352543983,1739159454610,-500.0,0.00011917,2]
[352543984,1739159454621,-500.0,0.00011917,2]
[352543985,1739159454634,-1187.85,0.00011917,2]
[352543986,1739159454643,-500.0,0.00011917,2]
[352543987,1739159454653,-500.0,0.00011917,2]
[352543988,1739159454662,-500.0,0.00011917,2]
[352543989,1739159454671,-500.0,0.00011917,2]
[352543990,1739159454681,-694.28,0.00011917,2]
[352543991,1739159454690,-500.0,0.00011917,2]
[352543992,1739159454699,-500.0,0.00011917,2]
[352543993,1739159454710,-500.0,0.00011917,2]
[352543994,1739159454720,-705.99,0.00011917,2]
[352543995,1739159454729,-500.0,0.00011917,2]
[352543996,1739159454739,-580.12,0.00011917,2]
[352543997,1739159454748,-500.0,0.00011917,2]
[352543998,1739159454757,-1920.71,0.00011917,2]
[352543999,1739159454766,-500.0,0.00011917,2]
[352544000,1739159454775,-500.0,0.00011917,2]
[352544001,1739159454784,-500.0,0.00011917,2]
[352544002,1739159454793,-610.0,0.00011917,2]
[352544003,1739159454802,-500.0,0.00011917,2]
[352544004,1739159454812,-1079.91,0.00011917,2]
[352544005,1739159454821,-500.0,0.00011917,2]
[352544006,1739159454831,-500.0,0.00011917,2]
[352544007,1739159454840,-653.91,0.00011917,2]
[352544008,1739159454853,-500.0,0.00011917,2]
[352544009,1739159454863,-501.46,0.00011917,2]
[352544010,1739159454872,-500.0,0.00011917,2]
[352544011,1739159454882,-512.10644892,0.00011917,2]
[352544012,1739159454891,-500.0,0.00011917,2]
[352544013,1739159454901,-3903.0,0.00011917,2]
[352544014,1739159454910,-3709.32,0.00011917,2]
[352544015,1739159454918,-500.0,0.00011917,2]
[352544016,1739159454928,-3719.6,0.00011917,2]
[352544017,1739159454937,-871.83,0.00011917,2]
[352544018,1739159454947,-2055.74,0.00011917,2]
[352544019,1739159454956,-500.0,0.00011917,2]
[352544020,1739159454965,-1325.55,0.00011917,2]
[352544021,1739159454975,-760.18,0.00011917,2]
[352544022,1739159454984,-170.7404736,0.00011917,2]
[352544023,1739159454993,-650.97,0.00011917,2]
[352544024,1739159455003,-14163.79,0.00011917,2]
[352544025,1739159455012,-518.98,0.00011917,2]
[352544026,1739159455022,-26907.86,0.00011917,2]
[352544027,1739159455031,-1618.92,0.00011917,2]
[352544028,1739159455040,-2005.94,0.00011917,2]
[352544029,1739159455049,-500.0,0.00011917,2]
[352544030,1739159455058,-704.77,0.00011917,2]
[352544031,1739159455068,-1456.37,0.00011917,2]
[352544032,1739159455077,-779.8,0.00011917,2]
[352544033,1739159455087,-500.0,0.00011917,2]
[352544034,1739159455099,-500.0,0.00011917,2]
[352544035,1739159455174,-500.0,0.00011917,2]
[352544036,1739159455184,-1919.7,0.00011917,2]
[352544037,1739159455195,-512.48750466,0.00011917,2]
[352544038,1739159455204,-824.44,0.00011917,2]
[352544039,1739159455214,-500.0,0.00011917,2]
[352544040,1739159455224,-1614.34,0.00011917,2]
[352544041,1739159455234,-500.0,0.00011917,2]
[352544042,1739159455245,-500.0,0.00011917,2]
[352544043,1739159455255,-500.0,0.00011917,2]
[352544044,1739159455265,-500.0,0.00011917,2]
[352544045,1739159455275,-500.0,0.00011917,2]
[352544046,1739159455285,-500.0,0.00011917,2]
[352544047,1739159455294,-500.0,0.00011917,2]
[352544048,1739159455304,-589.21,0.00011917,2]
[352544049,1739159455314,-1026.49,0.00011917,2]
[352544050,1739159455323,-500.0,0.00011917,2]
[352544051,1739159455333,-746.76,0.00011917,2]
[352544052,1739159455345,-655.27,0.00011917,2]
[352544053,1739159455357,-2053.08,0.00011917,2]
[352544054,1739159455366,-2692.2,0.00011917,2]
[352544055,1739159455376,-500.0,0.00011917,2]
[352544056,1739159455386,-1287.78,0.00011917,2]
[352544057,1739159455395,-1187.79,0.00011917,2]
[352544058,1739159455405,-500.0,0.00011917,2]
[352544059,1739159455414,-732.99,0.00011917,2]
[352544060,1739159455424,-1242.99,0.00011917,2]
[352544061,1739159455434,-1000.7,0.00011917,2]
[352544062,1739159455444,-500.0,0.00011917,2]
[352544063,1739159455455,-500.0,0.00011917,2]
[352544064,1739159455466,-504.08821107,0.00011917,2]
[352544065,1739159455476,-501.61218027,0.00011917,2]
[352544066,1739159455486,-500.0,0.00011917,2]
[352544067,1739159455496,-500.0,0.00011917,2]
[352544068,1739159455506,-521.05,0.00011917,2]
[352544069,1739159455515,-270.99536582,0.00011917,2]
[352544070,1739159455526,-500.0,0.00011917,2]
[352544071,1739159455536,-790.31,0.00011917,2]
[352544072,1739159455546,-510.08,0.00011917,2]
[352544073,1739159455556,-1045.63,0.00011917,2]
[352544074,1739159455565,-500.0,0.00011917,2]
[352544075,1739159455575,-503.0558322,0.00011917,2]
[352544076,1739159455584,-937.96,0.00011917,2]
[352544077,1739159455597,-3052.88,0.00011917,2]
[352544078,1739159455607,-679.89,0.00011917,2]
[352544079,1739159455617,-505.42088543,0.00011917,2]
[352544080,1739159455628,-500.0,0.00011917,2]
[352544081,1739159455644,-500.0,0.00011917,2]
[352544082,1739159455654,-6790.26,0.00011917,2]
[352544083,1739159455665,-1017.48,0.00011917,2]
[352544084,1739159455674,-500.0,0.00011917,2]
[352544085,1739159455683,-706.11,0.00011917,2]
[352544086,1739159455693,-3458.8,0.00011917,2]
[352544087,1739159455704,-500.0,0.00011917,2]
[352544088,1739159455713,-500.0,0.00011917,2]
[352544089,1739159455723,-10188.75,0.00011917,2]
[352544090,1739159455732,-420.0,0.0001204,2]
[352544091,1739159455742,-500.0,0.00012054,2]
[352544092,1739159455751,-719.3,0.00012054,2]
[352544093,1739159455760,-1019.54,0.00012054,2]
[352544094,1739159455769,-732.17,0.00012054,2]
[352544095,1739159455778,-500.0,0.00012054,2]
[352544096,1739159455788,-500.0,0.00012054,2]
[352544097,1739159455797,-500.0,0.00012054,2]
[352544098,1739159455807,-733.41,0.00012054,2]
[352544099,1739159455816,-742.49,0.00012054,2]
[352544100,1739159455825,-500.0,0.00012054,2]
[352544101,1739159455834,-500.0,0.00012054,2]
[352544102,1739159455844,-500.0,0.00012054,2]
[352544103,1739159455854,-500.0,0.00012054,2]
[352544104,1739159455863,-1187.85,0.00012054,2]
[352544105,1739159455873,-500.0,0.00012054,2]
[352544106,1739159455883,-500.0,0.00012054,2]
[352544107,1739159455892,-500.0,0.00012054,2]
[352544108,1739159455902,-500.0,0.00012054,2]
[352544109,1739159455911,-694.28,0.00012054,2]
[352544110,1739159455921,-500.0,0.00012054,2]
[352544111,1739159455930,-500.0,0.00012054,2]
[352544112,1739159455940,-500.0,0.00012054,2]
[352544113,1739159455949,-705.99,0.00012054,2]
[352544114,1739159455959,-500.0,0.00012054,2]
[352544115,1739159455968,-580.12,0.00012054,2]
[352544116,1739159455977,-500.0,0.00012054,2]
[352544117,1739159455986,-1920.71,0.00012054,2]
[352544118,1739159455996,-500.0,0.00012054,2]
[352544119,1739159456005,-500.0,0.00012054,2]
[352544120,1739159456015,-500.0,0.00012054,2]
[352544121,1739159456024,-610.0,0.00012054,2]
[352544122,1739159456033,-500.0,0.00012054,2]
[352544123,1739159456043,-1079.91,0.00012054,2]
[352544124,1739159456052,-500.0,0.00012054,2]
[352544125,1739159456061,-537.15448279,0.00012054,2]
[352544126,1739159456071,-653.91,0.00012054,2]
[352544127,1739159456081,-500.0,0.00012054,2]
[352544128,1739159456094,-501.46,0.00012054,2]
[352544129,1739159456103,-500.0,0.00012054,2]
[352544130,1739159456114,-500.0,0.00012054,2]
[352544131,1739159456123,-3903.0,0.00012054,2]
[352544132,1739159456133,-3709.32,0.00012054,2]
[352544133,1739159456143,-500.0,0.00012054,2]
[352544134,1739159456210,-3719.6,0.00012054,2]
[352544135,1739159456220,-871.83,0.00012054,2]
[352544136,1739159456231,-2055.74,0.00012054,2]
[352544137,1739159456241,-500.0,0.00012054,2]
[352544138,1739159456251,-1325.55,0.00012054,2]
[352544139,1739159456260,-760.18,0.00012054,2]
[352544140,1739159456270,-650.97,0.00012054,2]
[352544141,1739159456279,-14163.79,0.00012054,2]
[352544142,1739159456289,-518.98,0.00012054,2]
[352544143,1739159456298,-26907.86,0.00012054,2]
[352544144,1739159456308,-1618.92,0.00012054,2]
[352544145,1739159456317,-500.0,0.00012054,2]
[352544146,1739159456327,-2005.94,0.00012054,2]
[352544147,1739159456337,-704.77,0.00012054,2]
[352544148,1739159456348,-1456.37,0.00012054,2]
[352544149,1739159456357,-779.8,0.00012054,2]
[352544150,1739159456367,-245.52649207,0.00012054,2]
[352544151,1739159456376,-391.02659562,0.00012054,2]
[352544152,1739159456386,-500.0,0.00012054,2]
[352544153,1739159456396,-1919.7,0.00012054,2]
[352544154,1739159456405,-824.44,0.00012054,2]
[352544155,1739159456415,-422.28114881,0.00012054,2]
[352544156,1739159456426,-1614.34,0.00012054,2]
[352544157,1739159456436,-500.0,0.00012054,2]
[352544158,1739159456445,-500.0,0.00012054,2]
[352544159,1739159456455,-182.41134264,0.00012054,2]
[352544160,1739159456464,-500.0,0.00012054,2]
[352544161,1739159456474,-500.0,0.00012054,2]
[352544162,1739159456483,-500.0,0.00012054,2]
[352544163,1739159456492,-500.0,0.00012054,2]
[352544164,1739159456502,-589.21,0.00012054,2]
[352544165,1739159456511,-1026.49,0.00012054,2]
[352544166,1739159456521,-500.0,0.00012054,2]
[352544167,1739159456530,-746.76,0.00012054,2]
[352544168,1739159456539,-655.27,0.00012054,2]
[352544169,1739159456548,-2053.08,0.00012054,2]
[352544170,1739159456558,-2692.2,0.00012054,2]
[352544171,1739159456567,-500.0,0.00012054,2]
[352544172,1739159456576,-1287.78,0.00012054,2]
[352544173,1739159456585,-1187.79,0.00012054,2]
[352544174,1739159456595,-500.0,0.00012054,2]
[352544175,1739159456604,-732.99,0.00012054,2]
[352544176,1739159456614,-1242.99,0.00012054,2]
[352544177,1739159456626,-1000.7,0.00012054,2]
[352544178,1739159456636,-500.0,0.00012054,2]
[352544179,1739159456650,-500.0,0.00012054,2]
[352544180,1739159456669,-500.0,0.00012054,2]
[352544181,1739159456688,-500.0,0.00012054,2]
[352544182,1739159456709,-521.05,0.00012054,2]
[352544183,1739159456725,-500.0,0.00012054,2]
[352544184,1739159456744,-790.31,0.00012054,2]
[352544185,1739159456765,-510.08,0.00012054,2]
[352544186,1739159456780,-1045.63,0.00012054,2]
[352544187,1739159456800,-502.53507584,0.00012054,2]
[352544188,1739159456817,-937.96,0.00012054,2]
[352544189,1739159456836,-3052.88,0.00012054,2]
[352544190,1739159456851,-679.89,0.00012054,2]
[352544191,1739159456871,-500.0,0.00012054,2]
[352544192,1739159456885,-500.0,0.00012054,2]
[352544193,1739159456901,-6790.26,0.00012054,2]
[352544194,1739159456914,-1017.48,0.00012054,2]
[352544195,1739159456928,-500.0,0.00012054,2]
[352544196,1739159456942,-706.11,0.00012054,2]
[352544197,1739159456957,-3458.8,0.00012054,2]
[352544198,1739159456970,-500.0,0.00012054,2]
[352544199,1739159456985,-500.0,0.00012054,2]
[352544200,1739159456999,-10188.75,0.00012054,2]
[352544201,1739159457014,-151.0,0.000121,2]
[352544202,1739159457030,-911.6878396,0.00012138,2]
[352544203,1739159457044,-500.0,0.00012191,2]
[352544204,1739159457058,-719.3,0.00012191,2]
[352544205,1739159457072,-1019.54,0.00012191,2]
[352544206,1739159457086,-732.17,0.00012191,2]
[352544207,1739159457104,-500.0,0.00012191,2]
[352544208,1739159457118,-500.0,0.00012191,2]
[352544209,1739159457133,-500.0,0.00012191,2]
[352544210,1739159457147,-733.41,0.00012191,2]
[352544211,1739159457162,-742.49,0.00012191,2]
[352544212,1739159457180,-500.0,0.00012191,2]
[352544213,1739159457196,-500.0,0.00012191,2]
[352544214,1739159457212,-500.0,0.00012191,2]
[352544215,1739159457228,-500.0,0.00012191,2]
[352544216,1739159457243,-1187.85,0.00012191,2]
[352544217,1739159457258,-500.0,0.00012191,2]
[352544218,1739159457274,-500.0,0.00012191,2]
[352544219,1739159457288,-500.0,0.00012191,2]
[352544220,1739159457303,-500.0,0.00012191,2]
[352544221,1739159457318,-694.28,0.00012191,2]
[352544222,1739159457332,-500.0,0.00012191,2]
[352544223,1739159457351,-597.8535654,0.00012191,2]